[Event "Queens Festival Europe 2022"]
[Site "Tornelo"]
[Date "2022.06.19"]
[Round "10.4"]
[White "Mdivani, Maka"]
[Black "Shuqja, Klean"]
[Result "0-1"]
[ECO "E32"]
[WhiteElo "1901"]
[BlackElo "1839"]
[Annotator "NA RC"]
[PlyCount "88"]
[EventDate "2022.06.19"]
[EventType "swiss"]
[EventCountry "NET"]
[SourceTitle "playchess.com"]
[Source "ChessBase"]
[SourceQuality "1"]
[TimeControl "180+2"]

1. d4 {[%emt 0:00:02]} Nf6 {[%emt 0:00:05]} 2. c4 {[%emt 0:00:05]} e6 {[%emt 0:00:02]} 3. Nf3 {[%emt 0:00:01]} Bb4+ {[%emt 0:00:01]} 4. Nc3 {[%emt 0:00:04]} O-O {[%emt 0:00:04]} 5. Qc2 {[%emt 0:00:05]} b6 {[%emt 0:00:08]} 6. e4 {[%emt 0:00:05]} Bb7 {[%emt 0:00:12]} 7. Bd3 {[%emt 0:00:03]} Bxc3+ {[%emt 0:00:14]} 8. bxc3 {[%emt 0:00:06]} h6 {[%emt 0:00:33]} 9. O-O {[%emt 0:00:04]} d6 {[%emt 0:00:03]} 10. h3 {[%emt 0:00:12]} Nbd7 {[%emt 0:00:03]} 11. Bf4 {[%emt 0:00:04]} Qe7 {[%emt 0:00:08]} 12. Rfe1 {[%emt 0:00:14]} e5 {[%emt 0:00:02]} 13. Bh2 {[%emt 0:00:01]} c5 {[%emt 0:00:07]} 14. Rad1 {[%emt 0:00:04]} Rac8 {[%emt 0:00:07]} 15. Qd2 {[%emt 0:00:10]} cxd4 {[%emt 0:00:33]} 16. cxd4 {[%emt 0:00:03]} Rc7 {[%emt 0:00:08]} 17. Nh4 {[%emt 0:00:03]} Ne8 {[%emt 0:00:19]} 18. Nf5 {[%emt 0:00:02]} Qf6 {[%emt 0:00:04]} 19. Bg3 {[%emt 0:00:24]} exd4 {[%emt 0:00:06]} 20. Bh4 {[%emt 0:00:08]} g5 {[%emt 0:00:02]} 21. Bg3 {[%emt 0:00:06]} Ne5 {[%emt 0:00:17]} 22. Bb1 {[%emt 0:00:17]} Nxc4 {[%emt 0:00:15]} 23. Qe2 {[%emt 0:00:21]} Ng7 {[%emt 0:00:04]} 24. Nxd4 {[%emt 0:00:05]} Ne5 {[%emt 0:00:03]} 25. Nb5 {[%emt 0:00:05]} Rd7 {[%emt 0:00:05]} 26. Rd2 {[%emt 0:00:29]} Ba6 {[%emt 0:00:02]} 27. a4 {[%emt 0:00:05]} Bxb5 {[%emt 0:00:02]} 28. Qxb5 {[%emt 0:00:11]} Rfd8 {[%emt 0:00:03]} 29. Red1 {[%emt 0:00:04]} Ng6 {[%emt 0:00:04]} 30. Ba2 {[%emt 0:00:08]} Nf4 {[%emt 0:00:02]} 31. Qb3 {[%emt 0:00:04]} Ngh5 {[%emt 0:00:03]} 32. Bxf4 {[%emt 0:00:03]} Nxf4 {[%emt 0:00:00]} 33. Rd4 {[%emt 0:00:04]} Ng6 {[%emt 0:00:02]} 34. R4d3 {[%emt 0:00:02]} Ne5 {[%emt 0:00:01]} 35. Re3 {[%emt 0:00:02]} Kg7 {[%emt 0:00:01]} 36. Qc2 {[%emt 0:00:02]} Qf4 {[%emt 0:00:02]} 37. Qe2 {[%emt 0:00:01]} Qf6 {[%emt 0:00:02]} 38. g3 {[%emt 0:00:02]} Rc7 {[%emt 0:00:01]} 39. Kg2 {[%emt 0:00:01]} Rdc8 {[%emt 0:00:02]} 40. Bd5 {[%emt 0:00:03]} Rc2 {[%emt 0:00:02]} 41. Rd2 {[%emt 0:00:02]} Rxd2 {[%emt 0:00:02]} 42. Qxd2 {[%emt 0:00:02]} Nc4 {[%emt 0:00:01]} 43. Qc2 {[%emt 0:00:04]} Nxe3+ {[%emt 0:00:03]} 44. fxe3 {[%emt 0:00:05]} Rxc2+ {[%emt 0:00:01]} 0-1

[Event "Queens Festival Europe 2022"]
[Site "Tornelo"]
[Date "2022.06.19"]
[Round "10.4"]
[White "van den Brink, Nienke"]
[Black "Stadlinger, Lea"]
[Result "0-1"]
[ECO "C45"]
[WhiteElo "1771"]
[BlackElo "1723"]
[Annotator "NA RC"]
[PlyCount "92"]
[EventDate "2022.06.19"]
[EventType "swiss"]
[EventCountry "NET"]
[SourceTitle "playchess.com"]
[Source "ChessBase"]
[SourceQuality "1"]
[TimeControl "180+2"]

1. e4 {[%emt 0:00:02]} e5 {[%emt 0:00:05]} 2. Nf3 {[%emt 0:00:02]} Nc6 {[%emt 0:00:02]} 3. d4 {[%emt 0:00:01]} exd4 {[%emt 0:00:02]} 4. Nxd4 {[%emt 0:00:03]} Bc5 {[%emt 0:00:02]} 5. Nb3 {[%emt 0:00:01]} Bb6 {[%emt 0:00:03]} 6. Nc3 {[%emt 0:00:02]} d6 {[%emt 0:00:02]} 7. Qe2 {[%emt 0:00:04]} Be6 {[%emt 0:00:02]} 8. Be3 {[%emt 0:00:03]} Nf6 {[%emt 0:00:03]} 9. f3 {[%emt 0:00:03]} O-O {[%emt 0:00:27]} 10. O-O-O {[%emt 0:00:03]} Bxe3+ {[%emt 0:00:06]} 11. Qxe3 {[%emt 0:00:02]} a5 {[%emt 0:00:05]} 12. g4 {[%emt 0:00:06]} a4 {[%emt 0:00:05]} 13. Nd4 {[%emt 0:00:04]} Nxd4 {[%emt 0:00:06]} 14. Qxd4 {[%emt 0:00:05]} Qe8 {[%emt 0:00:09]} 15. h4 {[%emt 0:00:07]} Nd7 {[%emt 0:00:10]} 16. Nd5 {[%emt 0:00:06]} Qd8 {[%emt 0:00:21]} 17. a3 {[%emt 0:00:12]} Ne5 {[%emt 0:00:06]} 18. Qc3 {[%emt 0:00:09]} c6 {[%emt 0:00:08]} 19. Nf4 {[%emt 0:00:07]} b5 {[%emt 0:00:09]} 20. Nxe6 {[%emt 0:00:17]} fxe6 {[%emt 0:00:02]} 21. Be2 {[%emt 0:00:10]} Rb8 {[%emt 0:00:13]} 22. Rhf1 {[%emt 0:00:06]} Qxh4 {[%emt 0:00:11]} 23. f4 {[%emt 0:00:06]} Nf7 {[%emt 0:00:15]} 24. Qxc6 {[%emt 0:00:07]} Rfc8 {[%emt 0:00:06]} 25. Qd7 {[%emt 0:00:09]} Qh2 {[%emt 0:00:05]} 26. Bd3 {[%emt 0:00:10]} b4 {[%emt 0:00:16]} 27. Qxa4 {[%emt 0:00:10]} bxa3 {[%emt 0:00:06]} 28. Qxa3 {[%emt 0:00:03]} Ra8 {[%emt 0:00:03]} 29. Ba6 {[%emt 0:00:07]} Rc6 {[%emt 0:00:06]} 30. Rd2 {[%emt 0:00:10]} Qh4 {[%emt 0:00:04]} 31. Qf3 {[%emt 0:00:23]} Rcxa6 {[%emt 0:00:03]} 32. Kd1 {[%emt 0:00:05]} Ra1+ {[%emt 0:00:02]} 33. Ke2 {[%emt 0:00:01]} Qh2+ {[%emt 0:00:04]} 34. Rf2 {[%emt 0:00:03]} Qh4 {[%emt 0:00:03]} 35. Rg2 {[%emt 0:00:11]} Qd8 {[%emt 0:00:02]} 36. Qh3 {[%emt 0:00:05]} Qb6 {[%emt 0:00:04]} 37. Rh2 {[%emt 0:00:06]} h6 {[%emt 0:00:02]} 38. Rg2 {[%emt 0:00:06]} Qxb2 {[%emt 0:00:03]} 39. c4 {[%emt 0:00:04]} Qb4 {[%emt 0:00:04]} 40. Qd3 {[%emt 0:00:06]} R8a3 {[%emt 0:00:04]} 41. Qc2 {[%emt 0:00:04]} Qc5 {[%emt 0:00:04]} 42. Rg3 {[%emt 0:00:07]} Rxg3 {[%emt 0:00:04]} 43. Qb2 {[%emt 0:00:03]} Rg2+ {[%emt 0:00:01]} 44. Kf3 {[%emt 0:00:03]} Rxd2 {[%emt 0:00:04]} 45. Qxd2 {[%emt 0:00:02]} Qg1 {[%emt 0:00:01]} 46. Ke2 {[%emt 0:00:04]} Rf1 {[%emt 0:00:00]} 0-1

[Event "Queens Festival Europe 2022"]
[Site "Tornelo"]
[Date "2022.06.19"]
[Round "10.4"]
[White "Vujovic, Vera"]
[Black "Strnadova, Monika"]
[Result "1-0"]
[ECO "B34"]
[WhiteElo "1353"]
[BlackElo "1518"]
[Annotator "NA RC"]
[PlyCount "77"]
[EventDate "2022.06.19"]
[EventType "swiss"]
[EventCountry "NET"]
[SourceTitle "playchess.com"]
[Source "ChessBase"]
[SourceQuality "1"]
[TimeControl "180+2"]

1. e4 {[%emt 0:00:02]} c5 {[%emt 0:00:05]} 2. Nf3 {[%emt 0:00:02]} Nc6 {[%emt 0:00:01]} 3. d4 {[%emt 0:00:01]} cxd4 {[%emt 0:00:01]} 4. Nxd4 {[%emt 0:00:01]} g6 {[%emt 0:00:01]} 5. Nc3 {[%emt 0:00:03]} Bg7 {[%emt 0:00:01]} 6. Be3 {[%emt 0:00:01]} Qa5 {[%emt 0:00:03]} 7. Qd2 {[%emt 0:00:05]} Nf6 {[%emt 0:00:03]} 8. f3 {[%emt 0:00:06]} O-O {[%emt 0:00:04]} 9. h4 {[%emt 0:00:08]} Qb4 {[%emt 0:00:02]} 10. Nb3 {[%emt 0:00:04]} Nh5 {[%emt 0:00:18]} 11. g4 {[%emt 0:00:08]} Ng3 {[%emt 0:00:02]} 12. Rg1 {[%emt 0:00:03]} Nxf1 {[%emt 0:00:02]} 13. Rxf1 {[%emt 0:00:02]} b6 {[%emt 0:00:05]} 14. h5 {[%emt 0:00:03]} Ba6 {[%emt 0:00:05]} 15. Rh1 {[%emt 0:00:03]} Ne5 {[%emt 0:00:03]} 16. O-O-O {[%emt 0:00:17]} Nxf3 {[%emt 0:00:13]} 17. Qg2 {[%emt 0:00:30]} Ne5 {[%emt 0:00:30]} 18. hxg6 {[%emt 0:00:04]} fxg6 {[%emt 0:00:33]} 19. Qh2 {[%emt 0:00:21]} Nxg4 {[%emt 0:00:10]} 20. Qxh7+ {[%emt 0:00:04]} Kf7 {[%emt 0:00:01]} 21. Rhf1+ {[%emt 0:00:43]} Nf6 {[%emt 0:00:20]} 22. Rg1 {[%emt 0:00:07]} Ke8 {[%emt 0:00:22]} 23. Qxg7 {[%emt 0:00:07]} Nxe4 {[%emt 0:00:16]} 24. Qxg6+ {[%emt 0:00:03]} Kd8 {[%emt 0:00:01]} 25. Qxe4 {[%emt 0:00:02]} Qxe4 {[%emt 0:00:08]} 26. Nxe4 {[%emt 0:00:03]} Rc8 {[%emt 0:00:03]} 27. Ng5 {[%emt 0:00:11]} Be2 {[%emt 0:00:08]} 28. Ne6+ {[%emt 0:00:03]} Ke8 {[%emt 0:00:03]} 29. Nxf8 {[%emt 0:00:02]} Bxd1 {[%emt 0:00:03]} 30. Rxd1 {[%emt 0:00:02]} Kxf8 {[%emt 0:00:02]} 31. Rxd7 {[%emt 0:00:01]} a5 {[%emt 0:00:09]} 32. Bxb6 {[%emt 0:00:03]} a4 {[%emt 0:00:01]} 33. Nc5 {[%emt 0:00:03]} Rc6 {[%emt 0:00:02]} 34. Ba7 {[%emt 0:00:07]} Re6 {[%emt 0:00:02]} 35. Nxe6+ {[%emt 0:00:01]} Ke8 {[%emt 0:00:01]} 36. Rb7 {[%emt 0:00:03]} a3 {[%emt 0:00:01]} 37. bxa3 {[%emt 0:00:02]} Kf7 {[%emt 0:00:01]} 38. Bc5 {[%emt 0:00:02]} Ke8 {[%emt 0:00:02]} 39. Rxe7# {[%emt 0:00:02]} 1-0

[Event "Queens Festival Europe 2022"]
[Site "Tornelo"]
[Date "2022.06.19"]
[Round "10.5"]
[White "Ibrahimova, Sabina"]
[Black "Sikorova, Olga"]
[Result "1-0"]
[ECO "C17"]
[WhiteElo "2146"]
[BlackElo "2173"]
[Annotator "TA"]
[PlyCount "65"]
[EventDate "2022.06.19"]
[EventType "swiss"]
[EventCountry "NET"]
[SourceTitle "playchess.com"]
[Source "ChessBase"]
[SourceQuality "1"]
[TimeControl "180+2"]

{[%evp 20,65,27,-24,58,60,62,59,106,110,188,186,292,225,237,225,221,227,678,656,654,580,818,808,802,739,681,655,718,643,1238,1185,1600,1231,5086,2097,29964,6387,2534,1790,29989,29984,29984,29985,29992,29993,29995,1536]} 1. e4 {[%emt 0:00:02]} e6 {[%emt 0:00:04]} 2. d4 {[%emt 0:00:02]} d5 {[%emt 0:00:01]} 3. Nc3 {[%emt 0:00:02]} Bb4 {[%emt 0:00:02]} 4. e5 {[%emt 0:00:03]} c5 {[%emt 0:00:02]} 5. Bd2 {[%emt 0:00:01]} Ne7 {[%emt 0:00:10]} 6. Nb5 {[%emt 0:00:11]} Bxd2+ {[%emt 0:00:02]} 7. Qxd2 {[%emt 0:00:01]} O-O {[%emt 0:00:02]} 8. f4 {[%emt 0:00:03]} cxd4 {[%emt 0:00:03]} 9. Nf3 {[%emt 0:00:06]} Nbc6 {[%emt 0:00:03]} 10. Bd3 {[%emt 0:00:03]} a6 {[%emt 0:00:06]} 11. Nd6 {[%emt 0:00:02]} (11. Nbxd4 $142 Nxd4 12. Nxd4) 11... Nf5 {[%emt 0:00:09] C17: French: 3 Nc3 Bb4 4 e5 c5 sidelines.} ({Black should play} 11... f6 $11) 12. Bxf5 $14 {[%emt 0:00:08]} exf5 {[%emt 0:00:02] [#]} 13. O-O-O $146 {[%emt 0:00:06]} ({Predecessor:} 13. Nxd4 Qh4+ 14. g3 Qg4 15. Ne2 Be6 16. O-O-O Rab8 17. h3 Qg6 18. g4 h6 19. gxf5 Bxf5 {1-0 (30) Drakaki,A (1949)-Batsi,L (1462) Thessaloniki/Chalkidiki 2019}) 13... Be6 {[%emt 0:00:08]} (13... f6 $14 {should be considered.}) 14. Nxd4 $16 {[%emt 0:00:05]} Qb6 {[%emt 0:00:24]} (14... Qd7 $16 15. Kb1 Nxd4 16. Qxd4 b5) 15. N6xf5 $18 {[%emt 0:00:59]} ({Much less strong is} 15. N4xf5 f6) 15... Na5 {[%emt 0:00:28]} (15... Nxd4 $142 16. Nxd4 (16. Qxd4 Qa5 $16) 16... Bg4) 16. Nd6 {[%emt 0:00:14] [#] aiming for f5. Pair of Knights!} Nc4 {[%emt 0:00:07]} 17. Nxc4 {[%emt 0:00:02] Active counter play!} dxc4 {[%emt 0:00:01]} 18. f5 {[%emt 0:00:05]} Bd5 {[%emt 0:00:07]} (18... c3 19. Qxc3 Bxa2) 19. f6 {[%emt 0:00:51]} gxf6 {[%emt 0:00:43]} 20. Nf5 {[%emt 0:00:10]} c3 {[%emt 0:00:10]} 21. Qxc3 {[%emt 0:00:06] [#] Intending Qg3+ and mate.} Kh8 {[%emt 0:00:09]} 22. Rxd5 {[%emt 0:00:04]} Qe6 {[%emt 0:00:02]} 23. Ne3 {[%emt 0:00:06] Threatens to win with Rf1.} Rac8 {[%emt 0:00:03]} 24. Qd4 {[%emt 0:00:03] Hoping for Rf1.} f5 {[%emt 0:00:02]} 25. b3 {[%emt 0:00:06]} Rc6 {[%emt 0:00:03]} 26. Rd1 {[%emt 0:00:03]} Qh6 {[%emt 0:00:03]} 27. Kb2 {[%emt 0:00:02] White threatens Rd8 and mate.} Kg8 {[%emt 0:00:19]} 28. Nxf5 {[%emt 0:00:02] Threatening mate with e6.} Qg5 {[%emt 0:00:04]} 29. Nd6 {[%emt 0:00:04] e6 is the strong threat.} Rfc8 {[%emt 0:00:10]} 30. Nxc8 {[%emt 0:00:02] White mates.} Rxc8 {[%emt 0:00:01]} 31. e6 {[%emt 0:00:02][%cal Be5e6,Be6f7][%mdl 32]} Qe7 {[%emt 0:00:04]} 32. exf7+ {[%emt 0:00:02]} Kf8 {[%emt 0:00:04]} 33. Qh8+ {[%emt 0:00:03] White took control after the opening.  Weighted Error Value: White=0.22 (precise) /Black=1.55} 1-0

[Event "Queens Festival Europe 2022"]
[Site "Tornelo"]
[Date "2022.06.19"]
[Round "10.5"]
[White "Grimaldi, Angela Flavia"]
[Black "Grigoryan, Meri"]
[Result "0-1"]
[ECO "C54"]
[WhiteElo "1995"]
[BlackElo "1993"]
[Annotator "NA RC"]
[PlyCount "58"]
[EventDate "2022.06.19"]
[EventType "swiss"]
[EventCountry "NET"]
[SourceTitle "playchess.com"]
[Source "ChessBase"]
[SourceQuality "1"]
[TimeControl "180+2"]

1. e4 {[%emt 0:00:06]} e5 {[%emt 0:00:19]} 2. Nf3 {[%emt 0:00:02]} Nc6 {[%emt 0:00:02]} 3. Bc4 {[%emt 0:00:02]} Bc5 {[%emt 0:00:10]} 4. c3 {[%emt 0:00:03]} Nf6 {[%emt 0:00:06]} 5. d3 {[%emt 0:00:03]} O-O {[%emt 0:00:03]} 6. Bb3 {[%emt 0:00:04]} h6 {[%emt 0:00:04]} 7. O-O {[%emt 0:00:03]} d6 {[%emt 0:00:02]} 8. Nbd2 {[%emt 0:00:03]} Bg4 {[%emt 0:00:02]} 9. h3 {[%emt 0:00:02]} Bh5 {[%emt 0:00:01]} 10. Re1 {[%emt 0:00:02]} a5 {[%emt 0:00:04]} 11. a4 {[%emt 0:00:04]} Ne7 {[%emt 0:00:10]} 12. Nf1 {[%emt 0:00:03]} Bxf3 {[%emt 0:00:10]} 13. Qxf3 {[%emt 0:00:02]} Ng6 {[%emt 0:00:01]} 14. Ng3 {[%emt 0:00:06]} Nh4 {[%emt 0:00:06]} 15. Qe2 {[%emt 0:00:08]} c6 {[%emt 0:00:05]} 16. Be3 {[%emt 0:00:13]} Bxe3 {[%emt 0:00:03]} 17. fxe3 {[%emt 0:00:01]} d5 {[%emt 0:00:05]} 18. exd5 {[%emt 0:00:08]} cxd5 {[%emt 0:00:00]} 19. e4 {[%emt 0:00:04]} d4 {[%emt 0:00:04]} 20. Rf1 {[%emt 0:00:16]} dxc3 {[%emt 0:00:04]} 21. bxc3 {[%emt 0:00:01]} Qb6+ {[%emt 0:00:02]} 22. d4 {[%emt 0:00:49]} Qxb3 {[%emt 0:00:05]} 23. dxe5 {[%emt 0:00:01]} Qxc3 {[%emt 0:00:16]} 24. Nf5 {[%emt 0:00:24]} Nxf5 {[%emt 0:00:26]} 25. exf5 {[%emt 0:00:00]} Nd5 {[%emt 0:00:05]} 26. Kh1 {[%emt 0:00:38]} Rfe8 {[%emt 0:00:04]} 27. Rae1 {[%emt 0:00:10]} Rac8 {[%emt 0:00:14]} 28. f6 {[%emt 0:00:02]} Nxf6 {[%emt 0:00:24]} 29. Rc1 {[%emt 0:00:11]} Qxc1 {[%emt 0:00:08]} 0-1

[Event "Queens Festival Europe 2022"]
[Site "Tornelo"]
[Date "2022.06.19"]
[Round "10.5"]
[White "Farzaliyeva, Shams"]
[Black "Hariharan, Shambavi"]
[Result "1-0"]
[ECO "D50"]
[WhiteElo "1219"]
[BlackElo "1517"]
[Annotator "NA RC"]
[PlyCount "157"]
[EventDate "2022.06.19"]
[EventType "swiss"]
[EventCountry "NET"]
[SourceTitle "playchess.com"]
[Source "ChessBase"]
[SourceQuality "1"]
[TimeControl "180+2"]

1. d4 {[%emt 0:00:02]} d5 {[%emt 0:00:04]} 2. c4 {[%emt 0:00:04]} c6 {[%emt 0:00:01]} 3. Nc3 {[%emt 0:00:01]} Nf6 {[%emt 0:00:02]} 4. Bg5 {[%emt 0:00:03]} e6 {[%emt 0:00:03]} 5. e3 {[%emt 0:00:02]} h6 {[%emt 0:00:04]} 6. Bh4 {[%emt 0:00:02]} Nbd7 {[%emt 0:00:06]} 7. Bd3 {[%emt 0:00:03]} dxc4 {[%emt 0:00:02]} 8. Bxc4 {[%emt 0:00:02]} b5 {[%emt 0:00:01]} 9. Bd3 {[%emt 0:00:02]} Bb7 {[%emt 0:00:01]} 10. Nf3 {[%emt 0:00:05]} Be7 {[%emt 0:00:02]} 11. O-O {[%emt 0:00:03]} O-O {[%emt 0:00:02]} 12. a3 {[%emt 0:00:02]} a6 {[%emt 0:00:02]} 13. Rc1 {[%emt 0:00:06]} c5 {[%emt 0:00:01]} 14. Bxf6 {[%emt 0:00:04]} Bxf6 {[%emt 0:00:10]} 15. Ne4 {[%emt 0:00:07]} Bxe4 {[%emt 0:00:10]} 16. Bxe4 {[%emt 0:00:02]} Rb8 {[%emt 0:00:02]} 17. dxc5 {[%emt 0:00:04]} Qc7 {[%emt 0:00:05]} 18. c6 {[%emt 0:00:03]} Nb6 {[%emt 0:00:06]} 19. b3 {[%emt 0:00:04]} Rfc8 {[%emt 0:00:07]} 20. Qc2 {[%emt 0:00:04]} Be7 {[%emt 0:00:18]} 21. Rfd1 {[%emt 0:00:26]} Bxa3 {[%emt 0:00:03]} 22. Ra1 {[%emt 0:00:02]} Be7 {[%emt 0:00:11]} 23. Rxa6 {[%emt 0:00:01]} Bf6 {[%emt 0:00:03]} 24. Qc5 {[%emt 0:00:05]} Be7 {[%emt 0:00:11]} 25. Qxb5 {[%emt 0:00:13]} Nd5 {[%emt 0:00:06]} 26. Qc4 {[%emt 0:00:09]} Rb4 {[%emt 0:00:03]} 27. Qc2 {[%emt 0:00:05]} Rb6 {[%emt 0:00:14]} 28. Rxb6 {[%emt 0:00:09]} Qxb6 {[%emt 0:00:05]} 29. Bxd5 {[%emt 0:00:02]} exd5 {[%emt 0:00:02]} 30. Rxd5 {[%emt 0:00:20]} Qxc6 {[%emt 0:00:02]} 31. Qxc6 {[%emt 0:00:04]} Rxc6 {[%emt 0:00:02]} 32. Rd1 {[%emt 0:00:02]} Bf6 {[%emt 0:00:06]} 33. Rb1 {[%emt 0:00:04]} Rb6 {[%emt 0:00:02]} 34. Kf1 {[%emt 0:00:02]} Kf8 {[%emt 0:00:04]} 35. Ke2 {[%emt 0:00:02]} Ke7 {[%emt 0:00:01]} 36. Kd3 {[%emt 0:00:01]} Kd6 {[%emt 0:00:02]} 37. Nd4 {[%emt 0:00:10]} Kd5 {[%emt 0:00:07]} 38. e4+ {[%emt 0:00:18]} Kc5 {[%emt 0:00:05]} 39. Nf5 {[%emt 0:00:07]} Kb4 {[%emt 0:00:05]} 40. f4 {[%emt 0:00:04]} g6 {[%emt 0:00:12]} 41. Nxh6 {[%emt 0:00:04]} Ka3 {[%emt 0:00:04]} 42. Nxf7 {[%emt 0:00:03]} Ka2 {[%emt 0:00:10]} 43. Re1 {[%emt 0:00:10]} Rxb3+ {[%emt 0:00:02]} 44. Kc4 {[%emt 0:00:02]} Rc3+ {[%emt 0:00:04]} 45. Kd5 {[%emt 0:00:02]} Rc2 {[%emt 0:00:08]} 46. e5 {[%emt 0:00:06]} Be7 {[%emt 0:00:02]} 47. Ke6 {[%emt 0:00:12]} Bf8 {[%emt 0:00:03]} 48. g4 {[%emt 0:00:05]} Rxh2 {[%emt 0:00:02]} 49. Kf6 {[%emt 0:00:02]} Rf2 {[%emt 0:00:07]} 50. f5 {[%emt 0:00:02]} gxf5 {[%emt 0:00:01]} 51. gxf5 {[%emt 0:00:01]} Rb2 {[%emt 0:00:08]} 52. e6 {[%emt 0:00:02]} Rb6 {[%emt 0:00:04]} 53. Ne5 {[%emt 0:00:04]} Bb4 {[%emt 0:00:18]} 54. Nd7 {[%emt 0:00:14]} Bc3+ {[%emt 0:00:11]} 55. Kf7 {[%emt 0:00:04]} Rb7 {[%emt 0:00:03]} 56. Re2+ {[%emt 0:00:03]} Kb3 {[%emt 0:00:04]} 57. Ke8 {[%emt 0:00:06]} Rc7 {[%emt 0:00:04]} 58. e7 {[%emt 0:00:01]} Bb4 {[%emt 0:00:02]} 59. Re3+ {[%emt 0:00:03]} Kc2 {[%emt 0:00:03]} 60. f6 {[%emt 0:00:01]} Kd2 {[%emt 0:00:03]} 61. Re4 {[%emt 0:00:03]} Kd3 {[%emt 0:00:02]} 62. Rxb4 {[%emt 0:00:02]} Rc8+ {[%emt 0:00:01]} 63. Kf7 {[%emt 0:00:02]} Kc3 {[%emt 0:00:03]} 64. e8=Q {[%emt 0:00:03]} Rxe8 {[%emt 0:00:01]} 65. Kxe8 {[%emt 0:00:01]} Kxb4 {[%emt 0:00:02]} 66. f7 {[%emt 0:00:01]} Kc4 {[%emt 0:00:01]} 67. f8=Q {[%emt 0:00:01]} Kc3 {[%emt 0:00:02]} 68. Qd6 {[%emt 0:00:02]} Kc4 {[%emt 0:00:02]} 69. Nb6+ {[%emt 0:00:02]} Kb5 {[%emt 0:00:01]} 70. Kd7 {[%emt 0:00:01]} Ka5 {[%emt 0:00:02]} 71. Nc4+ {[%emt 0:00:03]} Ka4 {[%emt 0:00:02]} 72. Ne5 {[%emt 0:00:01]} Kb3 {[%emt 0:00:01]} 73. Qc6 {[%emt 0:00:01]} Kb4 {[%emt 0:00:02]} 74. Kd6 {[%emt 0:00:02]} Kb3 {[%emt 0:00:01]} 75. Kd5 {[%emt 0:00:01]} Kb2 {[%emt 0:00:01]} 76. Kd4 {[%emt 0:00:01]} Ka1 {[%emt 0:00:01]} 77. Qb5 {[%emt 0:00:02]} Ka2 {[%emt 0:00:02]} 78. Kc3 {[%emt 0:00:01]} Ka1 {[%emt 0:00:01]} 79. Qb2# {[%emt 0:00:02]} 1-0

[Event "Queens Festival Europe 2022"]
[Site "Tornelo"]
[Date "2022.06.19"]
[Round "10.6"]
[White "Steffensen, Elena"]
[Black "Kordzadze, Nino"]
[Result "1-0"]
[ECO "C11"]
[WhiteElo "2044"]
[BlackElo "2043"]
[Annotator "NA RC"]
[PlyCount "99"]
[EventDate "2022.06.19"]
[EventType "swiss"]
[EventCountry "NET"]
[SourceTitle "playchess.com"]
[Source "ChessBase"]
[SourceQuality "1"]
[TimeControl "180+2"]

1. e4 {[%emt 0:00:02]} e6 {[%emt 0:00:05]} 2. Nc3 {[%emt 0:00:04]} d5 {[%emt 0:00:02]} 3. Nf3 {[%emt 0:00:01]} Nf6 {[%emt 0:00:02]} 4. e5 {[%emt 0:00:02]} Nfd7 {[%emt 0:00:02]} 5. d4 {[%emt 0:00:01]} c5 {[%emt 0:00:01]} 6. dxc5 {[%emt 0:00:02]} Bxc5 {[%emt 0:00:03]} 7. Bd3 {[%emt 0:00:02]} Nc6 {[%emt 0:00:03]} 8. Bf4 {[%emt 0:00:01]} Qb6 {[%emt 0:00:03]} 9. O-O {[%emt 0:00:03]} Be7 {[%emt 0:00:24]} 10. Na4 {[%emt 0:00:30]} Qb4 {[%emt 0:00:04]} 11. c4 {[%emt 0:00:06]} dxc4 {[%emt 0:00:31]} 12. a3 {[%emt 0:00:07]} Qb5 {[%emt 0:00:12]} 13. Nc3 {[%emt 0:00:03]} Qxb2 {[%emt 0:00:07]} 14. Na4 {[%emt 0:00:16]} Qb5 {[%emt 0:00:02]} 15. Rb1 {[%emt 0:00:09]} Qa6 {[%emt 0:00:09]} 16. Be2 {[%emt 0:00:04]} Nb6 {[%emt 0:00:13]} 17. Nc3 {[%emt 0:00:21]} Bd7 {[%emt 0:00:09]} 18. Nb5 {[%emt 0:00:03]} O-O {[%emt 0:00:19]} 19. Nc7 {[%emt 0:00:02]} Qxa3 {[%emt 0:00:02]} 20. Nxa8 {[%emt 0:00:02]} Rxa8 {[%emt 0:00:02]} 21. Ra1 {[%emt 0:00:07]} Qc5 {[%emt 0:00:01]} 22. Be3 {[%emt 0:00:03]} Qb5 {[%emt 0:00:09]} 23. Bxb6 {[%emt 0:00:05]} Qxb6 {[%emt 0:00:03]} 24. Bxc4 {[%emt 0:00:05]} Rd8 {[%emt 0:00:07]} 25. Qb3 {[%emt 0:00:03]} Qxb3 {[%emt 0:00:06]} 26. Bxb3 {[%emt 0:00:02]} a6 {[%emt 0:00:02]} 27. Rfd1 {[%emt 0:00:05]} Be8 {[%emt 0:00:04]} 28. Rxd8 {[%emt 0:00:04]} Bxd8 {[%emt 0:00:01]} 29. Ba4 {[%emt 0:00:08]} Kf8 {[%emt 0:00:05]} 30. Bxc6 {[%emt 0:00:13]} Bxc6 {[%emt 0:00:02]} 31. Nd4 {[%emt 0:00:01]} Bd5 {[%emt 0:00:02]} 32. Kf1 {[%emt 0:00:06]} Ke7 {[%emt 0:00:02]} 33. f4 {[%emt 0:00:04]} Bb6 {[%emt 0:00:03]} 34. Nc2 {[%emt 0:00:04]} Bc5 {[%emt 0:00:07]} 35. Ke2 {[%emt 0:00:11]} Bxg2 {[%emt 0:00:03]} 36. Ne3 {[%emt 0:00:03]} Bc6 {[%emt 0:00:07]} 37. h4 {[%emt 0:00:06]} Bb4 {[%emt 0:00:10]} 38. Rb1 {[%emt 0:00:06]} Bc5 {[%emt 0:00:02]} 39. Ra1 {[%emt 0:00:03]} Bb5+ {[%emt 0:00:01]} 40. Kf3 {[%emt 0:00:07]} b6 {[%emt 0:00:04]} 41. f5 {[%emt 0:00:05]} Bxe3 {[%emt 0:00:06]} 42. Kxe3 {[%emt 0:00:02]} exf5 {[%emt 0:00:02]} 43. Rd1 {[%emt 0:00:05]} h6 {[%emt 0:00:08]} 44. Rd6 {[%emt 0:00:04]} g5 {[%emt 0:00:03]} 45. Rxh6 {[%emt 0:00:06]} g4 {[%emt 0:00:06]} 46. Rxb6 {[%emt 0:00:02]} g3 {[%emt 0:00:05]} 47. Kf3 {[%emt 0:00:04]} f4 {[%emt 0:00:04]} 48. h5 {[%emt 0:00:06]} Bc4 {[%emt 0:00:02]} 49. Rb1 {[%emt 0:00:07]} Bd5+ {[%emt 0:00:02]} 50. Kxf4 {[%emt 0:00:02]} 1-0